Workbook

Sheet 目录
A1: 目录
A2: 附表3-1 | B2: 部门预算收支总表
A3: 附表3-2 | B3: 部门预算收入总表
A4: 附表3-3 | B4: 部门预算支出总表
A5: 附表3-4 | B5: 部门预算财政拨款收支总表
A6: 附表3-5 | B6: 部门预算一般公共预算财政拨款支出表
A7: 附表3-6 | B7: 部门预算一般公共预算财政拨款基本支出表
A8: 附表3-7 | B8: 部门预算政府性基金预算财政拨款支出表
A9: 附表3-8 | B9: 部门预算国有资本经营预算财政拨款支出表
A10: 附表3-9 | B10: 部门预算财政拨款“三公”经费支出表

Sheet 附表3-1
A1: 附表3-1
A2: 部门预算收支总表
D3: 公开01表
D4: 单位：万元
A5: 收入 | C5: 支出
A6: 项 目 | B6: 预算数 | C6: 项 目 | D6: 预算数
A7: 一、财政拨款收入 | B7: =3804.91+188.87+360.16+195.74 -> 4549.68 | C7: 一、一般公共服务支出 | D7: =258.62+175.43 -> 434.05
A8: 二、上级补助收入 | C8: 二、外交支出
A9: 三、事业收入 | C9: 三、国防支出
A10: 四、经营收入 | C10: 四、公共安全支出
A11: 五、附属单位上缴收入 | C11: 五、教育支出
A12: 六、其他收入 | C12: 六、科学技术支出 | D12: 100.00
C13: 七、文化体育与传媒支出
C14: 八、社会保障和就业支出 | D14: =70.78+5.06+55 -> 130.84
C15: 九、医疗卫生与计划生育支出 | D15: =15.5+14.66+12.2+11.44 -> 53.80
C16: 十、节能环保支出
C17: 十一、城乡社区支出 | D17: 34.00
C18: 十二、农林水支出 | D18: =1313.97+157.77+283.56 -> 1755.30
C19: 十三、交通运输支出
C20: 十四、资源勘探信息等支出 | D20: 2000.00
C21: 十五、商业服务业等支出
C22: 十六、金融支出
C23: 十七、援助其他地区支出
C24: 十八、国土海洋气象等支出
C25: 十九、住房保障支出 | D25: =12.04+11.38+9.4+8.87 -> 41.69
C26: 二十、粮油物资储备支出
C27: 二十一、国债还本付息支出
C28: 二十二、其他支出
A29: 本年收入合计 | B29: =SUM(B7:B28) -> 4549.68 | C29: 本年支出合计 | D29: =SUM(D7:D28) -> 4549.68
A30: 用事业基金弥补收支差额 | C30: 结余分配
A31: 年初结转和结余 | C31: 年末结转和结余
A32: 合计 | B32: =SUM(B29:B31) -> 4549.68 | C32: 合计 | D32: =SUM(D29:D31) -> 4549.68

Sheet 附表3-2
A1: 附表3-2
A2: 部门预算收入总表
I3: 公开02表
I4: 单位：万元
A5: 科目 | C5: 本年收入合计 | D5: 财政拨款收入 | E5: 上级补助收入 | F5: 事业收入 | G5: 经营收入 | H5: 附属单位上缴收入 | I5: 其他收入
A6: 功能分类科目编码 | B6: 科目名称
A8: 合计 | C8: =D8 -> 4549.68 | D8: =SUM(D9:D30) -> 4549.68
A9: 2010301 | B9: 行政运行 | C9: =D9 -> 134.43 | D9: 134.43
A10: 2010302 | B10: 一般行政管理事务 | C10: 41.00 | D10: 41.00
A11: 2010401 | B11: 行政运行 | C11: 258.62 | D11: 258.62
A12: 2069901 | B12: 科技奖励 | C12: 100.00 | D12: 100.00
A13: 2080502 | B13: 事业单位离退休 | C13: 60.06 | D13: =5.06+55 -> 60.06
A14: 2101102 | B14: 事业单位医疗 | C14: 26.86 | D14: =14.66+12.2 -> 26.86
A15: 2082201 | B15: 移民补助 | C15: 53.76 | D15: 53.76
A16: 2082202 | B16: 基础设施建设和经济发展 | C16: 17.02 | D16: 17.02
A17: 2101101 | B17: 行政单位医疗 | C17: 11.44 | D17: 11.44
A18: 2101101 | B18: 医疗卫生与计划生育 | C18: 15.50 | D18: 15.50
A19: 2120399 | B19: 其他城乡社区公共设施收入 | C19: 16.00 | D19: 16.00
A20: 2120804 | B20: 农村基础设施建设收入 | C20: 18.00 | D20: 18.00
A21: 2130104 | B21: 事业运行 | C21: 348.43 | D21: =150.95+197.48 -> 348.43
A22: 2130108 | B22: 病虫害控制 | C22: 88.05 | D22: =10.47+77.58 -> 88.05
A23: 2130110 | B23: 执法监管 | C23: 6.82 | D23: 6.82
A24: 2130111 | B24: 统计监测与信息服务 | C24: 47.00 | D24: 47.00
A25: 2130112 | B25: 农业行业业务管理 | C25: 10.00 | D25: 10.00
A26: 2130122 | B26: 农业生产支持补贴 | C26: 1115.50 | D26: =1107+8.5 -> 1115.50
A27: 2130126 | B27: 农村公益事业 | C27: 30.00 | D27: 30.00
A28: 2130299 | B28: 其他林业收入 | C28: 109.50 | D28: 109.50
A29: 2150299 | B29: 其他制造业收入 | C29: 2000.00 | D29: 2000.00
A30: 2210201 | B30: 住房保障 | C30: 41.69 | D30: =12.04+11.38+9.4+8.87 -> 41.69

Sheet 附表3-3
A1: 附表3-3
A2: 部门预算支出总表
H3: 公开03表
H4: 单位：万元
A5: 科目 | C5: 本年支出合计 | D5: 基本支出 | E5: 项目支出 | F5: 上缴上级支出 | G5: 经营支出 | H5: 对附属单位补助支出
A6: 功能分类科目编码 | B6: 科目名称
A8: 合计 | C8: =D8+E8 -> 4549.68 | D8: =SUM(D9:D29) -> 897.03 | E8: =SUM(E16:E29) -> 3652.65
A9: 2010301 | B9: 行政运行 | C9: =D9+E9 -> 134.43 | D9: 134.43
A10: 2010401 | B10: 行政运行 | C10: 258.62 | D10: 258.62
A11: 2080502 | B11: 事业单位离退休 | C11: 60.06 | D11: =5.06+55 -> 60.06
A12: 2101101 | B12: 行政单位医疗 | C12: 26.94 | D12: =15.5+11.44 -> 26.94
A13: 2101102 | B13: 事业单位医疗 | C13: 26.86 | D13: =14.66+12.2 -> 26.86
A14: 2130104 | B14: 事业运行 | C14: 348.43 | D14: =150.95+197.48 -> 348.43
A15: 2210201 | B15: 住房公积金 | C15: 41.69 | D15: =12.04+11.38+9.4+8.87 -> 41.69
A16: 2010302 | B16: 一般行政管理事务 | C16: 41.00 | E16: 41.00
A17: 2069901 | B17: 科技奖励 | C17: 100.00 | E17: 100.00
A18: 2082201 | B18: 移民补助 | C18: 53.76 | E18: 53.76
A19: 2082202 | B19: 基础设施建设和经济发展 | C19: 17.02 | E19: 17.02
A20: 2120399 | B20: 其他城乡社区公共设施支出 | C20: 16.00 | E20: 16.00
A21: 2120804 | B21: 农村基础设施建设支出 | C21: 18.00 | E21: 18.00
A22: 2130108 | B22: 病虫害控制 | C22: 88.05 | E22: =10.47+77.58 -> 88.05
A23: 2130110 | B23: 执法监管 | C23: 6.82 | E23: 6.82
A24: 2130111 | B24: 统计监测与信息服务 | C24: 47.00 | E24: 47.00
A25: 2130112 | B25: 农业行业业务管理 | C25: 10.00 | E25: 10.00
A26: 2130122 | B26: 农业生产支持补贴 | C26: 1115.50 | E26: =1107+8.5 -> 1115.50
A27: 2130126 | B27: 农村公益事业 | C27: 30.00 | E27: 30.00
A28: 2130299 | B28: 其他林业支出 | C28: 109.50 | E28: 109.50
A29: 2150299 | B29: 其他制造业支出 | C29: 2000.00 | E29: 2000.00

Sheet 附表3-4
A1: 附表3-4
A2: 部门预算财政拨款收支总表
G3: 公开04表
G4: 单位：万元
A5: 收入 | C5: 支出
A6: 项 目 | B6: 金额 | C6: 项 目 | D6: 合计 | E6: 一般公共预算财政拨款 | F6: 政府性基金预算财政拨款 | G6: 国有资本经营预算财政拨款
A7: 一、一般公共预算财政拨款 | B7: =3716.13+188.87+360.16+195.74 -> 4460.90 | C7: 一、一般公共服务支出 | D7: =SUM(E7:F7) -> 434.05 | E7: =258.62+175.43 -> 434.05
A8: 二、政府性基金预算财政拨款 | B8: 88.78 | C8: 二、外交支出
A9: 三、国有资本经营预算财政拨款 | C9: 三、国防支出
C10: 四、公共安全支出
C11: 五、教育支出
C12: 六、科学技术支出 | D12: =SUM(E12:F12) -> 100 | E12: 100
C13: 七、文化体育与传媒支出
C14: 八、社会保障和就业支出 | D14: =SUM(E14:F14) -> 130.84 | E14: =5.06+55 -> 60.06 | F14: 70.78
C15: 九、医疗卫生与计划生育支出 | E15: =15.5+14.66+12.2+11.44 -> 53.8
C16: 十、节能环保支出
C17: 十一、城乡社区支出 | D17: =SUM(E17:F17) -> 34 | E17: 16 | F17: 18
C18: 十二、农林水支出 | D18: =SUM(E18:F18) -> 1755.3 | E18: =1313.97+157.77+283.56 -> 1755.3
C19: 十三、交通运输支出
C20: 十四、资源勘探信息等支出 | D20: =SUM(E20:F20) -> 2000 | E20: 2000
C21: 十五、商业服务业等支出
C22: 十六、金融支出
C23: 十七、援助其他地区支出
C24: 十八、国土海洋气象等支出
C25: 十九、住房保障支出 | D25: =SUM(E25:F25) -> 41.69 | E25: =12.04+11.38+9.4+8.87 -> 41.69
C26: 二十、粮油物资储备支出
C27: 二十一、国债还本付息支出
C28: 二十二、其他支出
A29: 本年收入合计 | B29: =SUM(B7:B28) -> 4549.68 | C29: 本年支出合计 | D29: =SUM(E29:F29) -> 4549.68 | E29: =SUM(E7:E28) -> 4460.9 | F29: =SUM(F7:F28) -> 88.78
A30: 年初财政拨款结转和结余 | C30: 年末结转和结余
A31: 合计 | B31: =SUM(B29:B30) -> 4549.68 | C31: 合计 | D31: =SUM(D29:D30) -> 4549.68 | E31: =SUM(E29:E30) -> 4460.9 | F31: =SUM(F29:F30) -> 88.78

Sheet 附表3-5
A1: 附表3-5
A2: 部门预算一般公共预算财政拨款支出表
E3: 公开05表
E4: 单位：万元
A5: 科目 | C5: 合计 | D5: 基本支出 | E5: 项目支出
A6: 功能分类科目编码 | B6: 科目名称
A9: 合计 | C9: =SUM(D9:E9) -> 4,460.90 | D9: =SUM(D10:D16) -> 897.03 | E9: =SUM(E17:E27) -> 3,563.87
A10: 2010301 | B10: 行政运行 | C10: =D10+E10 -> 134.43 | D10: 134.43
A11: 2010401 | B11: 行政运行 | C11: 258.62 | D11: 258.62
A12: 2080502 | B12: 事业单位离退休 | C12: 60.06 | D12: =5.06+55 -> 60.06
A13: 2101101 | B13: 行政单位医疗 | C13: 26.94 | D13: =15.5+11.44 -> 26.94
A14: 2101102 | B14: 事业单位医疗 | C14: 26.86 | D14: =14.66+12.2 -> 26.86
A15: 2130104 | B15: 事业运行 | C15: 348.43 | D15: =150.95+197.48 -> 348.43
A16: 2210201 | B16: 住房公积金 | C16: 41.69 | D16: =12.04+11.38+9.4+8.87 -> 41.69
A17: 2010302 | B17: 一般行政管理事务 | C17: 41.00 | E17: 41.00
A18: 2069901 | B18: 科技奖励 | C18: 100.00 | E18: 100.00
A19: 2120399 | B19: 其他城乡社区公共设施支出 | C19: 16.00 | E19: 16.00
A20: 2130108 | B20: 病虫害控制 | C20: 88.05 | E20: =10.47+77.58 -> 88.05
A21: 2130110 | B21: 执法监管 | C21: 6.82 | E21: 6.82
A22: 2130111 | B22: 统计监测与信息服务 | C22: 47.00 | E22: 47.00
A23: 2130112 | B23: 农业行业业务管理 | C23: 10.00 | E23: 10.00
A24: 2130122 | B24: 农业生产支持补贴 | C24: 1115.50 | E24: =1107+8.5 -> 1115.50
A25: 2130126 | B25: 农村公益事业 | C25: 30.00 | E25: 30.00
A26: 2130299 | B26: 其他林业支出 | C26: 109.50 | E26: 109.50
A27: 2150299 | B27: 其他制造业支出 | C27: 2000.00 | E27: 2000.00

Sheet 附表3-6
A1: 附表3-6
A2: 部门预算一般公共预算财政拨款基本支出表
E3: 公开06表
E4: 单位：万元
A5: 科目 | C5: 基本支出
A6: 经济分类科目编码 | B6: 科目名称 | C6: 合计 | D6: 人员经费 | E6: 公用经费
A7: 合计 | C7: =SUM(D7:E7) -> 897.03 | D7: =SUM(D8:D18) -> 822.15 | E7: =SUM(E19:E33) -> 74.88
A8: 30101 | B8: 基本工资 | C8: =D8+E8 -> 162.58 | D8: =50.14+43.37+37.1+31.97 -> 162.58
A9: 30102 | B9: 津贴补贴 | C9: =D9+E9 -> 70.47 | D9: =41.11+9.2+6.5+13.66 -> 70.47
A10: 30103 | B10: 奖金 | C10: 2.21 | D10: 2.21
A11: 30104 | B11: 其他社会保障缴费 | C11: 157.85 | D11: =44.7+43.35+36+33.8 -> 157.85
A12: 30107 | B12: 绩效工资 | C12: 158.92 | D12: =26.11+50.43+40.5+41.88 -> 158.92
A13: 30199 | B13: 其他工资福利支出 | C13: 128.40 | D13: =83.21+38.7+6.49 -> 128.4
A14: 30302 | B14: 事业单位退休费 | C14: 60.06 | D14: =5.06+55 -> 60.06
A15: 30305 | B15: 生活补助 | C15: 1.80 | D15: 1.8
A16: 30309 | B16: 奖励金 | C16: 0.34 | D16: =0.05+0.14+0.1+0.05 -> 0.34
A17: 30311 | B17: 住房公积金 | C17: 41.69 | D17: =12.04+11.38+9.4+8.87 -> 41.69
A18: 30399 | B18: 其他对个人和家庭的补助支出 | C18: 37.83 | D18: =8.44+8.47+15+5.92 -> 37.83
A19: 30201 | B19: 办公费 | C19: 9.75 | E19: =3.45+1.8+1.95+2.55 -> 9.75
A20: 30205 | B20: 水费 | C20: 0.60 | E20: 0.6
A21: 30206 | B21: 电费 | C21: 2.50 | E21: 2.5
A22: 30207 | B22: 邮电费 | C22: 7.10 | E22: =4.5+0.1+0.4+2.1 -> 7.1
A23: 30208 | B23: 取暖费 | C23: 20.00 | E23: 20
A24: 30211 | B24: 差旅费 | C24: 6.00 | E24: =2+1+1+2 -> 6
A25: 30213 | B25: 维修（护）费 | C25: 0.80 | E25: =0.5+0.3 -> 0.8
A26: 30215 | B26: 会议费 | C26: 2.37 | E26: =1.5+0.25+0.12+0.5 -> 2.37
A27: 30202 | B27: 印刷费 | C27: 2.00 | E27: 2
A28: 30231 | B28: 公务用车运行维护费 | C28: 7.50 | E28: =4.5+3 -> 7.5
A29: 30214 | B29: 租赁费 | C29: 2.50 | E29: 2.5
A30: 30299 | B30: 其他商品和服务支出 | C30: 0.65 | E30: =0.23+0.12+0.13+0.17 -> 0.65
A31: 30216 | B31: 培训费 | C31: 2.73 | E31: =0.5+1+0.23+1 -> 2.73
A32: 30217 | B32: 公务接待费 | C32: 3.50 | E32: =1.5+2 -> 3.5
A33: 30228 | B33: 工会经费 | C33: =D33+E33 -> 6.88 | E33: =1.97+1.88+1.55+1.48 -> 6.88

Sheet 附表3-7
A1: 附表3-7
A2: 部门预算政府性基金预算财政拨款支出表
F4: 单位：万元
A5: 科目 | D5: 合计 | E5: 基本支出 | F5: 项目支出
A6: 功能分类科目编码 | C6: 科目名称
A9: 合计 | D9: =SUM(E9:F9) -> 88.78 | F9: =SUM(F10:F12) -> 88.78
A10: 2120804 | C10: 农村基础设施建设收入 | D10: =SUM(E10:F10) -> 18.00 | F10: 18.00
A11: 2082201 | C11: 移民补助 | D11: =SUM(E11:F11) -> 53.76 | F11: 53.76
A12: 2082202 | C12: 基础设施建设和经济发展 | D12: =SUM(E12:F12) -> 17.02 | F12: 17.02

Sheet 附表3-8
A1: 附表3-8
A2: 部门预算国有资本经营预算财政拨款支出表
F4: 单位：万元
A5: 科目 | D5: 合计 | E5: 基本支出 | F5: 项目支出
A6: 功能分类科目编码 | C6: 科目名称
A9: 合计
A16: 此表无数据

Sheet 附表3-9
A1: 附表3-9
A2: 部门预算财政拨款“三公”经费支出表
E3: 公开07表
E4: 单位：万元
A5: 项目 | B5: 资金来源
B6: 合计 | C6: 一般公共预算财政拨款 | D6: 政府性基金财政拨款 | E6: 国有资本经营预算财政拨款
A7: 合计 | B7: =C7 -> 11 | C7: =C8+C9+C12 -> 11
A8: 一、因公出国（境）费
A9: 二、公务用车购置及运行费 | B9: =C9 -> 7.5 | C9: =C10+C11 -> 7.5
A10: 其中：公务用车购置费
A11: 公务用车运行费 | B11: 7.5 | C11: =3+4.5 -> 7.5
A12: 三、公务接待费 | B12: 3.5 | C12: =1.5+2 -> 3.5
